{"text_format":"1","workbook":"xlsx","n_sheets":4,"sheets":["AGBUS-PVBM","GRAD CHECK","ADVISOR'S NOTES","CONCENTRATION SHEET"],"not_rendered":{"charts":0,"images":1,"macros":0,"external_links":0,"defined_names":2,"comments":1,"pivot_tables":0},"unopened":[],"bounds":{"document_bytes":16777216,"sheet_cells":100000,"rows_first":2000,"rows_last":500,"rows_between":2000,"halvings":0,"cell_chars":16384,"cell_head_chars":4096},"cells_cut":0,"cells_raw":0,"read":"whole","date_system":"1900"}

{"sheet":"AGBUS-PVBM","index":0,"n_rows":43,"n_cols":35,"rows_kept":43,"cut":false,"hidden":false,"merged":[[0,18,0,24],[0,32,0,34],[0,1,0,16],[7,2,7,3],[7,23,7,24],[11,23,11,24],[11,2,11,3],[6,8,6,11],[7,8,7,11],[8,8,8,11],[9,8,9,11],[10,8,10,11],[6,2,6,3],[6,23,6,24],[10,2,10,3],[9,23,9,24],[10,23,10,24],[11,8,11,11],[8,2,8,3],[8,23,8,24],[9,2,9,3],[14,2,14,3],[12,23,12,24],[15,2,15,3],[13,23,13,24],[13,8,13,11],[14,8,14,11],[15,16,15,22],[12,2,12,3],[12,8,12,11],[13,2,13,3],[17,16,17,17],[22,2,22,3],[15,8,15,11],[16,8,16,11],[17,8,17,11],[16,2,16,3],[17,2,17,3],[23,0,23,11],[19,16,19,17],[18,8,18,11],[19,2,19,3],[19,8,19,11],[20,8,20,11],[21,8,21,11],[22,8,22,11],[18,2,18,3],[20,16,20,17],[20,2,20,3],[21,2,21,3],[18,16,18,17],[36,33,36,34],[21,16,21,17],[22,16,22,17],[23,16,23,17],[32,33,32,34],[34,33,34,34],[35,33,35,34],[24,33,24,34],[43,33,43,34],[37,33,37,34],[38,33,38,34],[39,33,39,34],[40,33,40,34],[41,33,41,34],[42,33,42,34],[19,33,19,34],[22,33,22,34],[23,33,23,34],[8,33,8,34],[11,33,11,34],[16,33,16,34],[17,33,17,34],[18,33,18,34],[20,33,20,34],[21,33,21,34],[10,33,10,34],[14,33,14,34],[13,33,13,34],[15,33,15,34],[9,33,9,34],[12,33,12,34]]}
["NAME:","Student's Name",null,null,null,null,null,null,null,null,null,null,null,null,null,null,null,"ID:","999-999-99",null,null,null,null,null,null,"AGBUS-PVBM",null,null,"ADV:",null,null,null,"AdvisorName"]
[]
["General Education Requirements: 40 Hours",null,null,null,null,null,null,null,null,null,null,null,null,null,null,null,"College/Dept. Requirements: 13 Hours",null,null,null,null,null,null,null,null,null,"Major Requirements: 67 Hours",null,null,null,null,null,null,null,"2017-18"]
[]
["Course",null,"Grade",null,"GPts","GPACr","GrCr",null,null,"Deviation",null,null,null,null,null,null,"Course",null,"Grade","GPts","GPACr","GrCr",null,"Deviation",null,null,"Course",null,"Grade","GPts","GPACr","GrCr",null,"Deviation"]
[]
["ENGL ",1113,null,null,{"$f":"IF(H7<>\"\",H7,3)*IF(C7=\"A\",4,IF(C7=\"B\",3,IF(C7=\"C\",2,IF(C7=\"D\",1,IF(AND(C7>=0,C7<=4,ISNUMBER(C7)),C7,0)))))","v":0},{"$f":"IF(OR(C7=\"A\",C7=\"B\",C7=\"C\",C7=\"D\",C7=\"F\",AND(C7>=0,C7<=4,ISNUMBER(C7))),IF(H7<>\"\",H7,3),\"\")","v":""},{"$f":"IF(OR(C7=\"A\",C7=\"B\",C7=\"C\",C7=\"D\",C7=\"P\",AND(C7>=0,C7<=4,ISNUMBER(C7))),IF(H7<>\"\",H7,3),\"\")","v":""},null,null,null,null,null,null,null,null,null,"AG",1011,null,{"$f":"IF(W7<>\"\",W7,3)*IF(S7=\"A\",4,IF(S7=\"B\",3,IF(S7=\"C\",2,IF(S7=\"D\",1,IF(AND(S7>=0,S7<=4,ISNUMBER(S7)),S7,0)))))","v":0},{"$f":"IF(OR(S7=\"A\",S7=\"B\",S7=\"C\",S7=\"D\",S7=\"F\",AND(S7>=0,S7<=4,ISNUMBER(S7))),IF(W7<>\"\",W7,3),\"\")","v":""},{"$f":"IF(OR(S7=\"A\",S7=\"B\",S7=\"C\",S7=\"D\",S7=\"P\",AND(S7>=0,S7<=4,ISNUMBER(S7))),IF(W7<>\"\",W7,3),\"\")","v":""},1,null,null,null,"Core Courses:  51 Hours"]
["ENGL ",1213,null,null,0,"","",null,null,null,null,null,null,null,null,null,"ENTO ",2993,null,{"$f":"IF(W8<>\"\",W8,3)*IF(S8=\"A\",4,IF(S8=\"B\",3,IF(S8=\"C\",2,IF(S8=\"D\",1,IF(AND(S8>=0,S8<=4,ISNUMBER(S8)),S8,0)))))","v":0},{"$f":"IF(OR(S8=\"A\",S8=\"B\",S8=\"C\",S8=\"D\",S8=\"F\",AND(S8>=0,S8<=4,ISNUMBER(S8))),IF(W8<>\"\",W8,3),\"\")","v":""},{"$f":"IF(OR(S8=\"A\",S8=\"B\",S8=\"C\",S8=\"D\",S8=\"P\",AND(S8>=0,S8<=4,ISNUMBER(S8))),IF(W8<>\"\",W8,3),\"\")","v":""}]
["HIST",1103,null,null,0,"","",null,null,null,null,null,null,null,null,null,"PLNT",1213,null,0,"","",null,null,null,null,"ACCT",2103,null,{"$f":"IF(AG9<>\"\",AG9,3)*IF(AC9=\"A\",4,IF(AC9=\"B\",3,IF(AC9=\"C\",2,IF(AC9=\"D\",1,IF(AND(AC9>=0,AC9<=4,ISNUMBER(AC9)),AC9,0)))))","v":0},{"$f":"IF(OR(AC9=\"A\",AC9=\"B\",AC9=\"C\",AC9=\"D\",AC9=\"F\",AND(AC9>=0,AC9<=4,ISNUMBER(AC9))),IF(AG9<>\"\",AG9,3),\"\")","v":""},{"$f":"IF(OR(AC9=\"A\",AC9=\"B\",AC9=\"C\",AC9=\"D\",AC9=\"P\",AND(AC9>=0,AC9<=4,ISNUMBER(AC9))),IF(AG9<>\"\",AG9,3),\"\")","v":""}]
["POLS",1113,null,null,0,"","",null,null,null,null,null,null,null,null,null,"AGCM",3103,null,0,"","",null,null,null,null,"AGEC",1101,null,{"$f":"IF(AG10<>\"\",AG10,3)*IF(AC10=\"A\",4,IF(AC10=\"B\",3,IF(AC10=\"C\",2,IF(AC10=\"D\",1,IF(AND(AC10>=0,AC10<=4,ISNUMBER(AC10)),AC10,0)))))","v":0},{"$f":"IF(OR(AC10=\"A\",AC10=\"B\",AC10=\"C\",AC10=\"D\",AC10=\"F\",AND(AC10>=0,AC10<=4,ISNUMBER(AC10))),IF(AG10<>\"\",AG10,3),\"\")","v":""},{"$f":"IF(OR(AC10=\"A\",AC10=\"B\",AC10=\"C\",AC10=\"D\",AC10=\"P\",AND(AC10>=0,AC10<=4,ISNUMBER(AC10))),IF(AG10<>\"\",AG10,3),\"\")","v":""},1]
["MATH",2103,null,null,0,"","",null,null,null,null,null,null,null,null,null,"AGCM",3203,null,0,"","",null,null,null,null,"AGEC",3101,null,0,{"$f":"IF(OR(AC11=\"A\",AC11=\"B\",AC11=\"C\",AC11=\"D\",AC11=\"F\",AND(AC11>=0,AC11<=4,ISNUMBER(AC11))),IF(AG11<>\"\",AG11,3),\"\")","v":""},"",1]
["STAT",2023,null,null,0,"","",null,null,null,null,null,null,null,null,null,null,null,null,0,"","",null,null,null,null,"AGEC",3213,null,{"$f":"IF(AG12<>\"\",AG12,3)*IF(AC12=\"A\",4,IF(AC12=\"B\",3,IF(AC12=\"C\",2,IF(AC12=\"D\",1,IF(AND(AC12>=0,AC12<=4,ISNUMBER(AC12)),AC12,0)))))","v":0},{"$f":"IF(OR(AC12=\"A\",AC12=\"B\",AC12=\"C\",AC12=\"D\",AC12=\"F\",AND(AC12>=0,AC12<=4,ISNUMBER(AC12))),IF(AG12<>\"\",AG12,3),\"\")","v":""},{"$f":"IF(OR(AC12=\"A\",AC12=\"B\",AC12=\"C\",AC12=\"D\",AC12=\"P\",AND(AC12>=0,AC12<=4,ISNUMBER(AC12))),IF(AG12<>\"\",AG12,3),\"\")","v":""}]
["(H)",null,null,null,0,"","",null,null,null,null,null,null,null,null,null,null,null,null,0,"","",null,null,null,null,"AGEC",3333,null,{"$f":"IF(AG13<>\"\",AG13,3)*IF(AC13=\"A\",4,IF(AC13=\"B\",3,IF(AC13=\"C\",2,IF(AC13=\"D\",1,IF(AND(AC13>=0,AC13<=4,ISNUMBER(AC13)),AC13,0)))))","v":0},{"$f":"IF(OR(AC13=\"A\",AC13=\"B\",AC13=\"C\",AC13=\"D\",AC13=\"F\",AND(AC13>=0,AC13<=4,ISNUMBER(AC13))),IF(AG13<>\"\",AG13,3),\"\")","v":""},{"$f":"IF(OR(AC13=\"A\",AC13=\"B\",AC13=\"C\",AC13=\"D\",AC13=\"P\",AND(AC13>=0,AC13<=4,ISNUMBER(AC13))),IF(AG13<>\"\",AG13,3),\"\")","v":""}]
["(H)",null,null,null,0,"","",null,null,null,null,null,null,null,null,null,null,null,null,0,"","",null,null,null,null,"AGEC",3423,null,0,"",""]
["BIOL",1114,null,null,0,"","",4,null,null,null,null,null,null,null,null,null,null,null,null,null,null,null,null,null,null,"AGEC",3603,null,0,"",""]
["CHEM",1314,null,null,0,"","",4,null,null,null,null,null,null,null,null,null,null,null,null,null,null,null,"Graduate Semester",null,null,"AGEC",3713,null,0,"",""]
["CHEM",1515,null,null,0,"","",5,null,null,null,null,null,null,null,null,"Credits and GPAs as of this date:",null,null,null,null,null,null,null,null,null,"ANSI",3423,null,0,"",""]
["AGEC",1113,null,null,0,"","",null,null,null,null,null,null,null,null,null,{"$f":"SUM(G7:G23,V7:V14,AF9:AF25,AF34:AF35,AF36:AF40,G28:G42,O29:O43)","v":0},null,"Hours for graduation",null,null,null,null,null,null,null,"ANSI",3543,null,0,"",""]
["(D)",null,null,null,0,"","",null,null,null,null,null,null,null,null,null,{"$f":"IF(SUM(F7:F23,U7:U14,AE34:AE35,AE36:AE40,AE9:AE25,F28:F42,N29:N43)=0,\"N/A\",ROUNDDOWN(SUM(E7:E23,T7:T14,AD9:AD25,AD34:AD35,AD36:AD40,E28:E42,M29:M43)/SUM(F7:F23,U7:U14,AE9:AE25,AE34:AE35,AE36:AE40, F28:F42,N29:N43),2))","v":"N/A"},null,"Grad/Ret GPA",null,null,null,null,null,null,null,"BIOC",3653,null,0,"",""]
["(I)",null,null,null,0,"","",null,null,null,null,null,null,null,null,null,{"$f":"SUMIF(B7:B23,\">2999\",F7:F23)+SUMIF(B28:B42,\">2999\",F28:F42)+SUMIF(J28:J42,\">2999\",N29:N43)+SUMIF(R7:R14,\">2999\",U7:U14)+SUMIF(AB9:AB25,\">2999\",AE9:AE25)+SUMIF(AB34:AB35,\">2999\",AE34:AE35)+SUMIF(AB36:AB40,\">2999\",AE36:AE40)","v":0},null,"UPPER DIV HOURS (40)",null,null,null,null,null,null,null,"CHEM",3015,null,0,"","",5]
[null,null,null,null,0,"","",null,null,null,null,null,null,null,null,null,{"$f":"SUMIF(B7:B23,\">2999\",E7:E23)+SUMIF(B28:B42,\">2999\",E28:E42)+SUMIF(J28:J42,\">2999\",M29:M43)+SUMIF(R7:R14,\">2999\",T7:T14)+SUMIF(AB9:AB25,\">2999\",AD9:AD25)+SUMIF(AB34:AB35,\">2999\",AD34:AD35)+SUMIF(AB36:AB40,\">2999\",AD36:AD40)","v":0},null,"Upper div points (100)",null,null,null,null,null,null,null,"MICR",2123,null,0,"",""]
[null,null,null,null,0,"","",null,null,null,null,null,null,null,null,null,{"$f":"IF(SUM(Q21)=0,\"N/A\",Q21/Q20)","v":"N/A"},null,"Upper div GPA",null,null,null,null,null,null,null,"MICR",2132,null,0,"","",2]
[null,null,null,null,0,"","",null,null,null,null,null,null,null,null,null,null,null,"60 Senior College Hours",null,null,null,null,null,null,null,"PHYS",1114,null,0,"","",4]
[null,null,null,null,null,null,null,null,null,null,null,null,null,null,null,null,120,null,"HOURS NEEDED",null,null,null,null,null,null,null,"PHYS",1214,null,0,"","",4]
["Elective Hours:",null,null,null,null,null,null,null,null,null,null,null,null,null,null,null,null,null,null,null,null,null,null,null,null,null,"BIOL",1604,null,0,"","",4]
["Non-Ag",null,null,null,null,null,null,null,"Ag Electives",null,null,null,null,null,null,null,"NOTES:"]
["Course",null,"Grd","Cr",null,null,null,null,"Course",null,"Grd","Cr",null,null,null,null,null,null,null,null,null,null,null,null,null,null,"Choose one of the two alternatives: 16 Hours"]
[null,null,null,null,{"$f":"D28*IF(OR(C28=\"A\",C28=\"RA\"),4,IF(OR(C28=\"B\",C28=\"RB\"),3,IF(OR(C28=\"C\",C28=\"RC\"),2,IF(OR(C28=\"D\",C28=\"RD\"),1,IF(AND(C28>=0,C28<=4,ISNUMBER(C28)),C28,0)))))","v":0},{"$f":"IF(OR(C28=\"\",D28=\"\"),\"\",IF(OR(C28=\"A\",C28=\"B\",C28=\"C\",C28=\"D\",C28=\"F\",C28=\"RA\",C28=\"RB\",C28=\"RC\",C28=\"RD\",C28=\"RF\",AND(C28>=0,C28<=4,ISNUMBER(C28))),D28,\"\"))","v":""},{"$f":"IF(OR(C28=\"\",D28=\"\"),\"\",IF(OR(C28=\"A\",C28=\"B\",C28=\"C\",C28=\"D\",C28=\"P\",AND(C28>=0,C28<=4,ISNUMBER(C28))),D28,\"\"))","v":""},null,null,null,null,null,"GPts","GPACr","GrCr",null,null,null,null,null,null,null,null,null,null,null,"I.  First year of professional program"]
[null,null,null,null,0,"","",null,null,null,null,null,{"$f":"L28*IF(OR(K28=\"A\",K28=\"RA\"),4,IF(OR(K28=\"B\",K28=\"RB\"),3,IF(OR(K28=\"C\",K28=\"RC\"),2,IF(OR(K28=\"D\",K28=\"RD\"),1,IF(AND(K28>=0,K28=4,ISNUMBER(K28)),K28,0)))))","v":0},{"$f":"IF(OR(K28=\"\",L28=\"\"),\"\",IF(OR(K28=\"A\",K28=\"B\",K28=\"C\",K28=\"D\",K28=\"F\",K28=\"RA\",K28=\"RB\",K28=\"RC\",K28=\"RD\",K28=\"RF\",AND(K28>=0,K28<=4,ISNUMBER(K28))),L28,\"\"))","v":""},{"$f":"IF(OR(K28=\"\",L28=\"\"),\"\",IF(OR(K28=\"A\",K28=\"B\",K28=\"C\",K28=\"D\",K28=\"P\",AND(K28>=0,K28<=4,ISNUMBER(K28))),L28,\"\"))","v":""}]
[null,null,null,null,0,"","",null,null,null,null,null,0,"","",null,null,null,null,null,null,null,null,null,null,null,"II.  Without first year of professional program: "]
[null,null,null,null,0,"","",null,null,null,null,null,0,"",""]
[null,null,null,null,0,"","",null,null,null,null,null,0,"",""]
[null,null,null,null,0,"","",null,null,null,null,null,0,"",""]
[null,null,null,null,0,"","",null,null,null,null,null,0,"",""]
[null,null,null,null,0,"","",null,null,null,null,null,0,"","",null,null,null,null,null,null,null,null,null,null,null,"AGEC",4403,null,{"$f":"IF(AG35<>\"\",AG35,3)*IF(AC35=\"A\",4,IF(AC35=\"B\",3,IF(AC35=\"C\",2,IF(AC35=\"D\",1,IF(AND(AC35>=0,AC35<=4,ISNUMBER(AC35)),AC35,0)))))","v":0},{"$f":"IF(OR(AC35=\"A\",AC35=\"B\",AC35=\"C\",AC35=\"D\",AC35=\"F\",AND(AC35>=0,AC35<=4,ISNUMBER(AC35))),IF(AG35<>\"\",AG35,3),\"\")","v":""},{"$f":"IF(OR(AC35=\"A\",AC35=\"B\",AC35=\"C\",AC35=\"D\",AC35=\"P\",AND(AC35>=0,AC35<=4,ISNUMBER(AC35))),IF(AG35<>\"\",AG35,3),\"\")","v":""}]
[null,null,null,null,0,"","",null,null,null,null,null,0,"","",null,null,null,null,null,null,null,null,null,null,null,"ECON",2203,null,0,"",""]
[null,null,null,null,0,"","",null,null,null,null,null,0,"","",null,null,null,null,null,null,null,null,null,null,null,"ECON",3113,null,0,"",""]
[null,null,null,null,0,"","",null,null,null,null,null,0,"","",null,null,null,null,null,null,null,null,null,null,null,"AGEC",null,null,0,"",""]
[null,null,null,null,0,"","",null,null,null,null,null,0,"","",null,null,null,null,null,null,null,null,null,null,null,"AGEC",null,null,0,"",""]
[null,null,null,null,0,"","",null,null,null,null,null,0,"","",null,null,null,null,null,null,null,null,null,null,null,null,null,null,0,"",""]
[null,null,null,null,0,"","",null,null,null,null,null,0,"",""]
[null,null,null,null,0,"","",null,null,null,null,null,0,"",""]
[null,null,null,null,null,null,null,null,null,null,null,null,0,"",""]

{"sheet":"GRAD CHECK","index":1,"n_rows":45,"n_cols":6,"rows_kept":45,"cut":false,"hidden":false,"merged":[[44,1,44,8],[24,1,24,5],[27,1,27,2],[28,1,28,3],[28,4,28,5],[38,1,38,8],[41,1,41,8],[20,2,20,3],[0,0,0,5],[1,0,1,5],[2,0,2,5],[6,1,6,3],[6,4,6,5],[9,1,9,3],[12,1,12,3],[12,4,12,6],[13,1,13,2],[15,1,15,2],[17,1,18,3]]}
["GRADUATION CHECK"]
["By"]
["COLLEGE OF AGRICULTURAL SCIENCES AND NATURAL RESOURCES"]
[]
[]
["Name:",null,null,null,"Date:"]
[null,{"$f":"'AGBUS-PVBM'!B1:Q1","v":"Student's Name"}]
[]
["ID:",null,null,null,"Graduation Date:"]
[null,{"$f":"'AGBUS-PVBM'!S1","v":"999-999-99"},null,null,{"$f":"'AGBUS-PVBM'!Q16","v":"00:00:00"}]
[]
["EMAIL:",null,null,null,"Major:"]
[null,null,null,null,{"$f":"'AGBUS-PVBM'!Z1","v":"AGBUS-PVBM"}]
[]
["Advisor:",null,null,null,"Grad/Ret GPA:"]
[null,{"$f":"'AGBUS-PVBM'!AG1","v":"AdvisorName"},null,null,{"$f":"'AGBUS-PVBM'!Q19","v":"N/A"}]
[]
[null,"REMINDER:",null,null,"Upper Division GPA:"]
[null,null,null,null,{"$f":"'AGBUS-PVBM'!Q22","v":"N/A"}]
["Total Hours to Date:",null,{"$f":"'AGBUS-PVBM'!Q18","v":0},null,"Total  Upper Div Hours to Date:",{"$f":"'AGBUS-PVBM'!Q20","v":0}]
["Current Enrollment:",null,null,null,"Total  Upper Div Points to Date:",{"$f":"'AGBUS-PVBM'!Q21","v":0}]
[]
["Deficiencies/Remaining Hours:"]
[]
[]
[]
["Hours Needed from a 4 yr. School: ",null,null,null,"Upper Div. hours & points needed: "]
[]
[]
[]
["Number of hours needed to complete requirements:"]
[null,null,null,null,"(hrs. = current enrollment + deficiencies)"]
[]
[]
[]
[]
[]
["APPROVED BY:"]
[null,"________________________________________________________________________ Advisor/Date Signed"]
[]
[]
[null,"_______________________________________________________________ Department Head/Date Signed"]
[]
[]
[null,"____________________________________________________________________ Assoc. Dean/Date Signed"]

{"sheet":"ADVISOR'S NOTES","index":2,"n_rows":1,"n_cols":2,"rows_kept":1,"cut":false,"hidden":false,"merged":[]}
["DATE","NOTES"]

{"sheet":"CONCENTRATION SHEET","index":3,"n_rows":48,"n_cols":5,"rows_kept":48,"cut":false,"hidden":false,"merged":[[42,3,44,3],[45,0,45,4],[46,0,46,4],[47,0,47,4],[26,0,27,1],[39,0,39,1],[40,0,40,1],[41,0,41,1],[36,2,41,2],[42,0,44,1],[42,2,44,2],[33,0,33,3],[34,0,34,3],[35,0,35,3],[36,0,36,1],[37,0,37,1],[38,0,38,1],[25,3,27,3],[28,0,28,1],[29,0,29,1],[30,0,30,3],[31,0,31,3],[32,0,32,3],[23,0,23,1],[24,0,24,1],[25,0,25,1],[25,2,27,2],[8,0,8,3],[9,0,20,1],[9,2,20,2],[9,3,20,3],[21,0,21,1],[22,0,22,1],[0,0,7,0],[0,1,0,4],[1,1,1,4],[2,1,2,4],[3,1,3,4],[4,1,4,4],[5,1,5,4],[6,1,6,4],[7,1,7,4]]}
[null,"COLLEGE OF AGRICULTURAL SCIENCES & NATURAL RESOURCES"]
[null,"OKLAHOMA STATE UNIVERSITY"]
[null,"Requirements for Students Matriculating in or before Academic Year 2017-2018"]
[null,"BACHELOR of SCIENCE in AGRICULTURAL SCIENCES and NATURAL RESOURCES"]
[null,"MAJOR: Agribusiness          OPTION: Pre-Veterinary Business Management"]
[null,"Minimum Overall Grade Point Average:  2.00 Total Hours:  120"]
[null,"   (cumulative graduation/retention GPA)"]
[null,"      Other GPA requirements, see below."]
["General Education Requirements:  40 Hours",null,null,null,"Major Requirements: 67 Hours"]
["Area",null,"Hours","To be selected from:"]
[null,null,null,null,"Core Courses: 51 hours "]
[]
[null,null,null,null,"ACCT 2103"]
[null,null,null,null,"AGEC 1101, 3101, 3213, 3333, 3423, 3603, 3713"]
[null,null,null,null,"ANSI 3423 (or BIOL 3023 or PLNT 3554), 3543"]
[null,null,null,null,"BIOC 3653"]
[null,null,null,null,"CHEM 3015 (or CHEM 3053, 3153, and 3112)"]
[null,null,null,null,"MICR 2123, 2132"]
[null,null,null,null,"PHYS 1114 (N), 1214 (N)"]
[null,null,null,null,"BIOL 1604 or 3204 or ANSI 3414"]
[]
["English Composition",null,6,"ENGL 1113 (or 1313) and ENGL 1213 (or 1413 or 3323) (See Academic Regulation 3.5 in Catalog)"]
["American History & Government",null,6,"HIST 1103 (or 1483 or 1493) and POLS 1113"]
["Analytical & Quantitative Thought (A)",null,6,"MATH 2103* (or 2123* or 2144*) and STAT 2023* (or equivalent STAT course designated (A))","Choose one of the two alternatives: 16 hours "]
["Humanities (H)",null,6,"Courses designated (H)","I. First year of professional program"]
["Natural Sciences (N)",null,13,"BIOL 1114*, CHEM 1314*, 1515*","With the approval of the adviser, department head, and dean the student may use hours from an accredited dental, medical, optometry, osteopathic, pharmacy, podiatry, or veterinary medical school to complete degree."]
["Must include one Laboratory Science (L) course "]
[null,null,null,null,"II. Without first year of professional program"]
["Social & Behavioral Sciences (S)",null,3,"AGEC 1113*","AGEC 4403 (or 4423)"]
["Additional General Education",null,0,"Courses designated A, H, N, or S","ECON 2203, 3113 (or 3023 or 3123 or 3313)"]
["Diversity(D) & International Dimension(I)",null,null,null,"6 additional hours from AGEC 4000 level excluding 4990"]
["May be completed in any part of the degree plan.",null,null,null,"1 additional hour"]
["At least one Diversity (D) course"]
["At least one International Dimension (I) course"]
["*College or Departmental requirements that meet GE requirements"]
["College/Departmental Requirements:  13 Hours"]
["Agricultural Sciences and Natural Resources",null,7,"AG 1011; "]
[null,null,null,"From two of the following groups, select one course: "]
[null,null,null,"1. PLNT 1213, HORT 1013, NREM 1113, 3343"]
["Course cannot be used here and as an (N)",null,null,"2. SOIL 1113, 2124"]
[null,null,null,"3. ANSI 1124, FDSC 1133, ENTO 2993, 3003"]
[null,null,null,"4. NREM 1014, 2013, ENVR 1113, BIOC 2344, 3713, LA 1013"]
["Written and Oral Communications",null,6,"AGCM 3103 (or BCOM 3113 or BCOM 3443 or ENGL 3323) (If ENGL 3323 is substituted for ENGL 1213 above; hours in this block are reduced by 3.) AGCM 3203 or SPCH 2713 or 3733.","ELECTIVES: 0 Hours"]
[null,null,null,null,"(or hours to complete required total for degree)"]
[null,null,null,null,"MATH 1483 or 1513 may need to be taken as prerequisite to required Calculus course"]
["Other Requirements:  Exit interview with Head of Department of Agricultural Economics. A minimum of 40 semester credit hours and 100 grade points must be earned in courses numbered 3000 or above. A 2.00 GPA or higher in upper-division hours."]
["Additional State/OSU Requirements – At least: 60 hours at a four-year institution; 30 hours completed at OSU; 15 of the final 30 or 50% of the upper-division hours in the major field completed at OSU. Limit of: one-half of major course requirements as transfer work; one-fourth of hours earned by correspondence; 8 transfer correspondence hours."]
["Students will be held responsible for degree requirements in effect at the time of matriculation and any changes that are made, so long as these changes do not result in semester credit hours being added or do not delay graduation. Degrees that follow this plan must be completed by the end of Summer 2023."]